fUST/lending_fUST_20250914
["ID","MTS","AMOUNT","RATE_DAILY","PERIOD"]
[385398394,1757831440586,-486.3511237,0.00021917,2]
[385398396,1757831440595,-484.25320579,0.00021917,2]
[385398398,1757831440603,-732.37,0.00021917,2]
[385398400,1757831440612,-481.41306662,0.00021917,2]
[385398402,1757831440622,-526.93,0.00021917,2]
[385398404,1757831440631,-424.58722164,0.00021917,2]
[385398406,1757831440640,-480.0,0.00021917,2]
[385398408,1757831440649,-480.0,0.00021917,2]
[385398410,1757831440658,-480.0,0.00021917,2]
[385398412,1757831440668,-481.68172908,0.00021917,2]
[385398414,1757831440677,-483.03381551,0.00021917,2]
[385398416,1757831440686,-482.27251455,0.00021917,2]
[385398418,1757831440695,-484.77429846,0.00021917,2]
[385398420,1757831440705,-480.0,0.00021917,2]
[385398422,1757831440714,-481.00035165,0.00021917,2]
[385398426,1757831440723,-480.0,0.00021917,2]
[385398428,1757831440733,-658.62,0.00021917,2]
[385398430,1757831440742,-480.0,0.00021917,2]
[385398432,1757831440751,-482.75952734,0.00021917,2]
[385398434,1757831440760,-463.55028271,0.00021917,2]
[385398436,1757831440769,-903.09,0.00021917,2]
[385398438,1757831440779,-490.68032206,0.00021917,2]
[385398441,1757831440788,-559.37,0.00021917,2]
[385398442,1757831440798,-482.63964694,0.00021917,2]
[385398445,1757831440808,-482.78762382,0.00021917,2]
[385398446,1757831440820,-481.31450981,0.00021917,2]
[385398449,1757831440830,-1002.09,0.00021917,2]
[385398450,1757831440839,-480.0,0.00021917,2]
[385398452,1757831440848,-629.54057354,0.00021917,2]
[385398455,1757831440858,-488.24591542,0.00021917,2]
[385398457,1757831440871,-480.0,0.00021917,2]
[385398459,1757831440880,-597.12,0.00021917,2]
[385398461,1757831440890,-1481.6,0.00021917,2]
[385398462,1757831440899,-692.64,0.00021917,2]
[385398464,1757831440909,-486.63472254,0.00021917,2]
[385398467,1757831440918,-480.0,0.00021917,2]
[385398469,1757831440927,-668.46,0.00021917,2]
[385398470,1757831440937,-998.81,0.00021917,2]
[385398472,1757831440946,-480.0,0.00021917,2]
[385398475,1757831440955,-489.45833749,0.00021917,2]
[385398477,1757831440964,-309.85292737,0.00021917,2]
[385398479,1757831440973,-480.0,0.00021917,2]
[385398481,1757831440983,-483.50769552,0.00021917,2]
[385398483,1757831440992,-488.76343659,0.00021917,2]
[385398485,1757831441001,-480.0,0.00021917,2]
[385398487,1757831441010,-537.82081092,0.00021917,2]
[385398489,1757831441019,-480.0,0.00021917,2]
[385398491,1757831441028,-480.0,0.00021917,2]
[385398493,1757831441038,-932.27,0.00021917,2]
[385398495,1757831441047,-483.35175481,0.00021917,2]
[385398497,1757831441056,-388.75305366,0.00021917,2]
[385398499,1757831441065,-487.62638926,0.00021917,2]
[385398501,1757831441076,-203.80194275,0.00021917,2]
[385398503,1757831441091,-488.2183371,0.00021917,2]
[385398505,1757831441100,-265.58687551,0.00021917,2]
[385398507,1757831441109,-813.55,0.00021917,2]
[385398509,1757831441119,-582.18004331,0.00021917,2]
[385398511,1757831441129,-654.6,0.00021917,2]
[385398513,1757831441137,-480.0,0.00021917,2]
[385398515,1757831441147,-480.0,0.00021917,2]
[385398517,1757831441158,-693.88,0.00021917,2]
[385398519,1757831441167,-531.49748548,0.00021917,2]
[385398521,1757831441178,-480.0,0.00021917,2]
[385398523,1757831441187,-484.29398583,0.00021917,2]
[385398525,1757831441197,-480.0,0.00021917,2]
[385398527,1757831441206,-486.80212054,0.00021917,2]
[385398529,1757831441223,-377.98807678,0.00021917,2]
[385398531,1757831441232,-494.32,0.00021917,2]
[385398533,1757831441241,-556.75,0.00021917,2]
[385398535,1757831441250,-1595.73799402,0.00021917,2]
[385398538,1757831441268,-312.42200598,0.00021917,2]
[385398540,1757831441277,-632.34,0.00021917,2]
[385398542,1757831441287,-244.42657025,0.00021917,2]
[385398544,1757831441296,-480.0,0.00021917,2]
[385398546,1757831441305,-482.61975341,0.00021917,2]
[385398548,1757831441314,-480.0,0.00021917,2]
[385398550,1757831441323,-577.54,0.00021917,2]
[385398552,1757831441332,-789.3,0.00021917,2]
[385398554,1757831441341,-484.51,0.00021917,2]
[385398556,1757831441350,-480.0,0.00021917,2]
[385398558,1757831441359,-598.11,0.00021917,2]
[385398560,1757831441369,-480.0,0.00021917,2]
[385398562,1757831441378,-480.0,0.00021917,2]
[385398564,1757831441387,-481.94779864,0.00021917,2]
[385398566,1757831441396,-1299.74,0.00021917,2]
[385398568,1757831441406,-769.69,0.00021917,2]
[385398570,1757831441415,-778.36,0.00021917,2]
[385398572,1757831441424,-480.0,0.00021917,2]
[385398574,1757831441433,-4877.92,0.00021917,2]
[385398576,1757831441443,-985.28,0.00021917,2]
[385398578,1757831441452,-8625.49,0.00021917,2]
[385398581,1757831441461,-480.0,0.00021917,2]
[385398582,1757831441470,-2212.53,0.00021917,2]
[385398585,1757831441480,-480.0,0.00021917,2]
[385398587,1757831441489,-480.0,0.00021917,2]
[385398589,1757831441498,-480.0,0.00021917,2]
[385398590,1757831441507,-480.0,0.00021917,2]
[385398593,1757831441516,-480.0,0.00021917,2]
[385398594,1757831441525,-480.0,0.00021917,2]
[385398596,1757831441534,-12607.77387102,0.00021917,2]
[385398597,1757831441554,-3999.95594099,0.00021917,2]
[385398598,1757831441564,-2460.72902232,0.00021917,2]
[385398631,1757831441976,-2276.65000003,0.00021917,2]
[385398887,1757831444474,-320.76464802,0.00021453,2]
[385398889,1757831444486,-619.67339358,0.00021453,2]
[385398949,1757831446630,-716.53931282,0.00021453,2]
[385398950,1757831446642,-743.02264558,0.00021453,2]
[385398951,1757831446652,-480.0,0.00021917,2]
[385398952,1757831446662,-245.30234598,0.00021917,2]
[385398953,1757831446671,-480.0,0.00021917,2]
[385398954,1757831446680,-583.73,0.00021917,2]
[385398955,1757831446689,-485.96,0.00021917,2]
[385398956,1757831446698,-480.0,0.00021917,2]
[385398957,1757831446708,-560.33493338,0.00021917,2]
[385398958,1757831446717,-5031.65007526,0.00021917,2]
[385399103,1757831456710,1000.0,0.00030057,50]
[385399113,1757831496524,155.160401,0.00024,30]
[385399145,1757831685055,5000.0,0.00019178,2]
[385399149,1757831773152,-293.90784349,0.00019309,2]
[385399150,1757831774674,-243.18141578,0.00019309,2]
[385399151,1757831776694,-440.49561061,0.00019309,2]
[385399152,1757831778853,-393.72357633,0.00019309,2]
[385399153,1757831781147,-253.26243942,0.00019309,2]
[385399154,1757831782710,-184.11073457,0.00019309,2]
[385399155,1757831784684,-153.15883562,0.00019309,2]
[385399156,1757831786928,-191.13106353,0.00019309,2]
[385399157,1757831789553,-189.30466192,0.00019309,2]
[385399158,1757831792777,-172.72673596,0.00019309,2]
[385399159,1757831795240,-266.27671976,0.00019309,2]
[385399160,1757831797286,-471.12972035,0.00019309,2]
[385399161,1757831800575,-228.42226009,0.00019309,2]
[385399162,1757831819085,158.108303,0.00027397,120]
[385399163,1757831844210,5000.0,0.00019178,2]
[385399164,1757831876551,158.0,8.2e-07,2]
[385399165,1757831877606,158.0,8.2e-07,2]
[385399166,1757831878678,158.0,8.2e-07,2]
[385399167,1757831879800,158.0,8.2e-07,2]
[385399168,1757831881639,158.0,8.2e-07,2]
[385399169,1757831882753,158.0,8.2e-07,2]
[385399170,1757831883883,158.0,8.2e-07,2]
[385399172,1757831915939,815.17203772,0.00024,30]
[385399179,1757831949934,1204.29,0.00027397,120]
[385399182,1757832047267,173.572061,0.00024,30]
[385399185,1757832070550,5000.0,0.00018221,2]
[385399186,1757832092814,5000.0,0.00018221,2]
[385399187,1757832097997,155.160401,0.00024,30]
[385399188,1757832108663,5000.0,0.00018221,2]
[385399189,1757832116630,5000.0,0.00018221,2]
[385399191,1757832132289,5000.0,0.00018221,2]
[385399192,1757832140160,5000.0,0.00018221,2]
[385399194,1757832155763,1228.98516645,0.00018221,2]
[385399196,1757832165009,5000.0,0.00018221,2]
[385399197,1757832187627,5000.0,0.00018541,2]
[385399198,1757832210389,5000.0,0.00018221,2]
[385399199,1757832233219,5000.0,0.00018221,2]
[385399200,1757832242097,5000.0,0.00018541,2]
[385399201,1757832258560,5000.0,0.00018728,2]
[385399213,1757832266538,5000.0,0.00018728,2]
[385399214,1757832274655,0.01,0.00018728,2]
[385399215,1757832274677,4010.22597348,0.00018728,2]
[385399217,1757832300205,1753.37331411,0.00018221,2]
[385399218,1757832300583,890.99400269,0.00030142,50]
[385399221,1757832483582,5000.0,0.00018541,2]
[385399222,1757832492387,5000.0,0.00018541,2]
[385399223,1757832507840,5000.0,0.00018627,2]
[385399225,1757832515718,5000.0,0.00018627,2]
[385399231,1757832531675,0.01,0.00018627,2]
[385399232,1757832531699,4999.99,0.00018627,2]
[385399234,1757832539555,5000.0,0.00018627,2]
[385399235,1757832555907,0.02,0.00018627,2]
[385399236,1757832555930,4999.98,0.00018627,2]
[385399237,1757832556308,-159.57994243,0.00018627,2]
[385399244,1757832563788,5000.0,0.00018627,2]
[385399245,1757832579295,5000.0,0.00018727,2]
[385399246,1757832587801,5000.0,0.00018727,2]
[385399247,1757832603374,0.01,0.00018727,2]
[385399248,1757832603402,4999.99,0.00018727,2]
[385399249,1757832611338,5000.0,0.00018727,2]
[385399265,1757832631975,-5000.0,0.0001854,2]
[385399267,1757832631985,-1200.0,0.00018727,2]
[385399268,1757832631994,-252.2717245,0.00018728,2]
[385399270,1757832632005,-300.0,0.00018957,2]
[385399272,1757832632014,-1200.0,0.00018957,2]
[385399275,1757832632024,-10000.0,0.00018958,2]
[385399277,1757832632033,-5000.0,0.00019178,2]
[385399278,1757832632043,-5000.0,0.00019178,2]
[385399281,1757832632052,-194.36118283,0.000197,2]
[385399283,1757832632061,-3451.92400329,0.000198,2]
[385399288,1757832632072,-44581.07949949,0.000198,2]
[385399291,1757832632081,-500.0,0.000198,2]
[385399294,1757832632091,-500.0,0.000198,2]
[385399296,1757832632100,-500.0,0.000198,2]
[385399298,1757832632109,-503.79368862,0.000198,2]
[385399299,1757832632118,-500.0,0.000198,2]
[385399300,1757832632127,-516.1083888,0.000198,2]
[385399301,1757832632136,-4995.77432077,0.000199,2]
[385399302,1757832632145,-476.232879,0.00020305,2]
[385399303,1757832632154,-500.0,0.00020348,2]
[385399304,1757832632164,-1000.0,0.00020348,2]
[385399305,1757832632173,-1000.0,0.00020348,2]
[385399306,1757832632182,-1000.0,0.00020348,2]
[385399307,1757832632192,-359.46081237,0.0002058,2]
[385399308,1757832632200,-250.0,0.00020597,2]
[385399309,1757832632210,-566.54119692,0.00020616,2]
[385399310,1757832632219,-420.0,0.00020664,2]
[385399311,1757832632228,-159.57994242,0.00020736,2]
[385399312,1757832632237,-1500.0,0.00020896,2]
[385399313,1757832632246,-1082.46252492,0.00020896,2]
[385399315,1757832632256,-7750.97020489,0.00021,2]
[385399317,1757832632266,-502.15069589,0.00021065,2]
[385399320,1757832632275,-4995.77432073,0.00021149,2]
[385399321,1757832632284,-2000.0,0.00021444,2]
[385399323,1757832632293,-425.18751107,0.00021616,2]
[385399326,1757832632303,-425.18751103,0.00021616,2]
[385399328,1757832632312,-425.18751103,0.00021617,2]
[385399329,1757832632321,-425.18751103,0.00021617,2]
[385399331,1757832632330,-151.891796,0.00021617,2]
[385399334,1757832632339,-11664.46071955,0.00021617,2]
[385399336,1757832632349,-425.18751103,0.00021617,2]
[385399338,1757832632358,-155.0,0.00021706,2]
[385399340,1757832632367,-1809.35,0.00021706,3]
[385399341,1757832632377,-904.68,0.00021706,3]
[385399343,1757832632386,-452.34,0.00021706,3]
[385399345,1757832632395,-280.1,0.00021706,3]
[385399347,1757832632405,-301.1,0.00021706,3]
[385399349,1757832632414,-638.51,0.00021706,3]
[385399351,1757832632424,-648.39,0.00021706,3]
[385399353,1757832632433,-324.19,0.00021706,3]
[385399354,1757832632442,-162.1,0.00021706,3]
[385399355,1757832632452,-486.32,0.00021706,3]
[385399357,1757832632461,-392.35,0.00021706,3]
[385399359,1757832632470,-326.96,0.00021706,3]
[385399361,1757832632479,-272.47,0.00021706,3]
[385399363,1757832632488,-284.08,0.00021706,3]
[385399365,1757832632497,-852.29,0.00021706,3]
[385399367,1757832632506,-236.74,0.00021706,3]
[385399369,1757832632515,-710.22,0.00021706,3]
[385399371,1757832632524,-197.28,0.00021706,3]
[385399373,1757832632533,-151.0,0.00021707,2]
[385399375,1757832632542,-3007.01,0.00021707,3]
[385399377,1757832632551,-3618.7,0.00021707,3]
[385399379,1757832632562,-160.0,0.00021707,3]
[385399381,1757832632571,-500.0,0.00021716,2]
[385399383,1757832632580,-200.0,0.00021716,2]
[385399385,1757832632591,-160.38964163,0.00021716,2]
[385399387,1757832632600,-201.60890821,0.00021716,2]
[385399389,1757832632611,-500.0,0.00021716,2]
[385399390,1757832632621,-440.01647604,0.00021716,2]
[385399391,1757832632631,-234.10733141,0.00021716,2]
[385399393,1757832632641,-500.0,0.00021716,2]
[385399395,1757832632650,-500.0,0.00021716,2]
[385399397,1757832632660,-500.0,0.00021716,2]
[385399399,1757832632669,-500.0,0.00021716,2]
[385399401,1757832632679,-500.0,0.00021716,2]
[385399403,1757832632688,-500.0,0.00021716,2]
[385399404,1757832632698,-386.32766502,0.00021716,2]
[385399405,1757832632707,-500.0,0.00021716,2]
[385399406,1757832632717,-500.0,0.00021716,2]
[385399407,1757832632727,-500.0,0.00021716,2]
[385399408,1757832632736,-500.0,0.00021716,2]
[385399409,1757832632745,-505.33455809,0.00021716,2]
[385399410,1757832632755,-500.0,0.00021716,2]
[385399411,1757832632764,-608.26901566,0.00021716,2]
[385399412,1757832632773,-500.0,0.00021716,2]
[385399413,1757832632783,-199.15391318,0.00021716,2]
[385399414,1757832632792,-553.29754361,0.00021716,2]
[385399415,1757832632801,-2094.53899451,0.00021716,2]
[385399416,1757832632810,-615.53752352,0.00021716,2]
[385399417,1757832632820,-2094.53899451,0.00021716,2]
[385399418,1757832632831,-2094.53899451,0.00021716,2]
[385399419,1757832632841,-2094.53899451,0.00021716,2]
[385399420,1757832632850,-2094.53899451,0.00021716,2]
[385399421,1757832632859,-2094.53899451,0.00021716,2]
[385399422,1757832632868,-2094.53899451,0.00021716,2]
[385399423,1757832632878,-2094.53899451,0.00021716,2]
[385399424,1757832632887,-2094.53899451,0.00021716,2]
[385399425,1757832632896,-2094.53899451,0.00021716,2]
[385399426,1757832632905,-2094.53899451,0.00021716,2]
[385399427,1757832632915,-2094.53899451,0.00021716,2]
[385399428,1757832632924,-2094.53899451,0.00021716,2]
[385399429,1757832632933,-2094.53899451,0.00021716,2]
[385399430,1757832632942,-2541.73663395,0.00021716,2]
[385399431,1757832632952,-2541.73663395,0.00021716,2]
[385399432,1757832632962,-2541.73663395,0.00021716,2]
[385399433,1757832632971,-2541.73663395,0.00021716,2]
[385399434,1757832632981,-2541.73663395,0.00021716,2]
[385399435,1757832632990,-2541.73663395,0.00021716,2]
[385399436,1757832632999,-2011.02766479,0.00021716,2]
[385399437,1757832633012,-530.70896916,0.00021716,2]
[385399438,1757832633021,-2541.73663395,0.00021716,2]
[385399439,1757832633030,-2541.73663395,0.00021716,2]
[385399440,1757832633040,-2541.73663395,0.00021716,2]
[385399441,1757832633049,-2446.33685302,0.00021716,2]
[385399442,1757832633066,-95.39978093,0.00021716,2]
[385399443,1757832633075,-1065.5608352,0.00021716,2]
[385399444,1757832633088,-1521.02997463,0.00021716,2]
[385399445,1757832633098,-2586.59080983,0.00021716,2]
[385399446,1757832633109,-2586.59080983,0.00021716,2]
[385399447,1757832633124,-2586.59080983,0.00021716,2]
[385399448,1757832633145,-1000.0,0.00021716,2]
[385399449,1757832633164,-281.933117,0.00021716,2]
[385399450,1757832633204,-151.0,0.00021716,2]
[385399451,1757832633214,-151.0,0.00021716,2]
[385399452,1757832633223,-210.383453,0.00021716,2]
[385399453,1757832633232,-24785.55241695,0.00021717,2]
[385399454,1757832635414,5000.0,0.00018221,2]
[385399473,1757832637895,-284.0,0.0002164,2]
[385399474,1757832637904,-591.86,0.00021707,3]
[385399475,1757832637914,-193111.52859213,0.00021717,2]
[385399476,1757832637928,-152102.91899092,0.00021717,2]
[385399477,1757832637937,-500.0,0.00021773,2]
[385399478,1757832637946,-500.0,0.00021773,2]
[385399479,1757832637956,-200.0,0.00021815,2]
[385399480,1757832637966,-20717.9515613,0.00021826,2]
[385399481,1757832637975,-207.08031381,0.00021899,2]
[385399482,1757832637986,-20717.9515613,0.000219,2]
[385399483,1757832637996,-1102.379173,0.000219,2]
[385399484,1757832638005,-297.99376606,0.00021916,2]
[385399485,1757832638016,-157.0,0.00021916,2]
[385399486,1757832638025,-157.0,0.00021916,2]
[385399487,1757832638034,-157.0,0.00021916,2]
[385399488,1757832638044,-157.0,0.00021916,2]
[385399489,1757832638054,-157.0,0.00021916,2]
[385399490,1757832638063,-157.0,0.00021916,2]
[385399491,1757832638072,-1012.0,0.00021916,2]
[385399492,1757832638081,-500.0,0.00021916,2]
[385399493,1757832638090,-520.0,0.00021917,3]
[385399494,1757832638100,-480.0,0.00021917,2]
[385399495,1757832638109,-485.91164065,0.00021917,2]
[385399496,1757832638119,-971.23,0.00021917,2]
[385399497,1757832638128,-480.0,0.00021917,2]
[385399498,1757832638137,-486.64605471,0.00021917,2]
[385399499,1757832638146,-480.0,0.00021917,2]
[385399500,1757832638155,-480.0,0.00021917,2]
[385399501,1757832638164,-572.24,0.00021917,2]
[385399502,1757832638173,-536.06,0.00021917,2]
[385399503,1757832638183,-483.91834609,0.00021917,2]
[385399504,1757832638193,-480.0,0.00021917,2]
[385399505,1757832638204,-562.04583943,0.00021917,2]
[385399506,1757832638213,-940.07,0.00021917,2]
[385399507,1757832638223,-480.0,0.00021917,2]
[385399508,1757832638232,-880.72,0.00021917,2]
[385399509,1757832638242,-480.0,0.00021917,2]
[385399510,1757832638251,-480.0,0.00021917,2]
[385399511,1757832638260,-874.32,0.00021917,2]
[385399512,1757832638269,-486.32349585,0.00021917,2]
[385399513,1757832638279,-1179.89,0.00021917,2]
[385399514,1757832638288,-553.48,0.00021917,2]
[385399515,1757832638297,-846.23,0.00021917,2]
[385399516,1757832638306,-480.0,0.00021917,2]
[385399517,1757832638315,-480.0,0.00021917,2]
[385399518,1757832638324,-480.0,0.00021917,2]
[385399519,1757832638333,-836.7,0.00021917,2]
[385399520,1757832638343,-480.0,0.00021917,2]
[385399521,1757832638519,-590.41,0.00021917,2]
[385399522,1757832638529,-480.0,0.00021917,2]
[385399523,1757832638538,-480.0,0.00021917,2]
[385399524,1757832638549,-480.0,0.00021917,2]
[385399525,1757832638559,-480.0,0.00021917,2]
[385399526,1757832638568,-587.32,0.00021917,2]
[385399527,1757832638579,-480.0,0.00021917,2]
[385399528,1757832638589,-480.0,0.00021917,2]
[385399529,1757832638600,-480.0,0.00021917,2]
[385399530,1757832638622,-504.98,0.00021917,2]
[385399531,1757832638638,-710.51406551,0.00021917,2]
[385399532,1757832638648,-2842.05626204,0.00021917,2]
[385399533,1757832638667,-480.0,0.00021917,2]
[385399534,1757832638677,-480.0,0.00021917,2]
[385399535,1757832638687,-491.34395462,0.00021917,2]
[385399536,1757832638697,-480.0,0.00021917,2]
[385399537,1757832638707,-480.0,0.00021917,2]
[385399538,1757832638717,-689.26,0.00021917,2]
[385399539,1757832638727,-480.0,0.00021917,2]
[385399540,1757832638736,-480.0,0.00021917,2]
[385399541,1757832638746,-701.85,0.00021917,2]
[385399542,1757832638756,-606.07,0.00021917,2]
[385399543,1757832638766,-946.45,0.00021917,2]
[385399544,1757832638775,-206.31241572,0.00021917,2]
[385399545,1757832638784,-788.0,0.00021917,2]
[385399546,1757832638793,-1001.22,0.00021917,2]
[385399547,1757832638802,-663.78,0.00021917,2]
[385399548,1757832638812,-490.50494709,0.00021917,2]
[385399549,1757832638821,-480.0,0.00021917,2]
[385399550,1757832638834,-631.18,0.00021917,2]
[385399551,1757832638843,-480.0,0.00021917,2]
[385399552,1757832638854,-480.0,0.00021917,2]
[385399553,1757832638863,-480.0,0.00021917,2]
[385399554,1757832638874,-480.0,0.00021917,2]
[385399555,1757832638884,-1566.43,0.00021917,2]
[385399556,1757832638893,-569.21,0.00021917,2]
[385399557,1757832638904,-1432.2,0.00021917,2]
[385399558,1757832638913,-957.2,0.00021917,2]
[385399559,1757832638925,-1096.56,0.00021917,2]
[385399560,1757832638935,-480.0,0.00021917,2]
[385399561,1757832638945,-480.0,0.00021917,2]
[385399562,1757832638956,-893.43,0.00021917,2]
[385399563,1757832638966,-480.0,0.00021917,2]
[385399564,1757832638977,-177.7503558,0.00021917,2]
[385399565,1757832638986,-639.34413568,0.00021917,2]
[385399566,1757832638996,-1005.74,0.00021917,2]
[385399567,1757832639005,-480.0,0.00021917,2]
[385399568,1757832639015,-487.41515589,0.00021917,2]
[385399569,1757832639025,-548.92,0.00021917,2]
[385399570,1757832639034,-480.0,0.00021917,2]
[385399571,1757832639044,-640.6,0.00021917,2]
[385399572,1757832639054,-480.0,0.00021917,2]
[385399573,1757832639064,-872.73,0.00021917,2]
[385399574,1757832639073,-627.32,0.00021917,2]
[385399575,1757832639082,-490.36406835,0.00021917,2]
[385399576,1757832639092,-480.0,0.00021917,2]
[385399577,1757832639102,-485.86025727,0.00021917,2]
[385399578,1757832639111,-329.05704188,0.00021917,2]
[385399579,1757832639121,-485.87945724,0.00021917,2]
[385399580,1757832639131,-480.0,0.00021917,2]
[385399581,1757832639140,-482.53305558,0.00021917,2]
[385399582,1757832639149,-480.0,0.00021917,2]
[385399583,1757832639159,-861.73,0.00021917,2]
[385399584,1757832639169,-5747.49,0.00021917,2]
[385399585,1757832639178,-771.06,0.00021917,2]
[385399586,1757832639188,-480.0,0.00021917,2]
[385399587,1757832639197,-942.38,0.00021917,2]
[385399588,1757832639209,-2064.19,0.00021917,2]
[385399589,1757832639219,-615.71,0.00021917,2]
[385399590,1757832639228,-480.0,0.00021917,2]
[385399591,1757832639237,-480.0,0.00021917,2]
[385399592,1757832639247,-1385.59,0.00021917,2]
[385399593,1757832639255,-480.0,0.00021917,2]
[385399594,1757832639265,-757.62,0.00021917,2]
[385399595,1757832639274,-1077.94,0.00021917,2]
[385399596,1757832639284,-396.84023577,0.00021917,2]
[385399597,1757832639294,-480.0,0.00021917,2]
[385399598,1757832639303,-675.59,0.00021917,2]
[385399599,1757832639312,-8498.17,0.00021917,2]
[385399600,1757832639321,-501.23,0.00021917,2]
[385399601,1757832639331,-560.99,0.00021917,2]
[385399602,1757832639340,-300.0,0.00021917,2]
[385399603,1757832639350,-5268.46,0.00021917,2]
[385399604,1757832639359,-248.93233259,0.00021917,2]
[385399605,1757832639368,-480.0,0.00021917,2]
[385399606,1757832639378,-2324.04,0.00021917,2]
[385399607,1757832639388,-480.0,0.00021917,2]
[385399608,1757832639398,-508.34,0.00021917,2]
[385399609,1757832639407,-480.0,0.00021917,2]
[385399610,1757832639417,-487.08404597,0.00021917,2]
[385399611,1757832639427,-1005.96,0.00021917,2]
[385399612,1757832639436,-480.0,0.00021917,2]
[385399613,1757832639445,-6388.23196299,0.00021917,2]
[385399614,1757832639456,-5300.04,0.00021917,2]
[385399615,1757832639466,-485.82936598,0.00021917,2]
[385399616,1757832639475,-519.07,0.00021917,2]
[385399617,1757832639485,-4171.91,0.00021917,2]
[385399618,1757832639494,-480.0,0.00021917,2]
[385399619,1757832639503,-1385.59,0.00021917,2]
[385399620,1757832639513,-480.0,0.00021917,2]
[385399621,1757832639522,-480.0,0.00021917,2]
[385399622,1757832639531,-37415.07,0.00021917,2]
[385399623,1757832639540,-480.0,0.00021917,2]
[385399624,1757832639550,-640.3,0.00021917,2]
[385399625,1757832639560,-480.0,0.00021917,2]
[385399626,1757832639569,-578.83,0.00021917,2]
[385399627,1757832639578,-1662.8,0.00021917,2]
[385399628,1757832639587,-506.67657771,0.00021917,2]
[385399629,1757832639596,-392.53126948,0.00021917,2]
[385399630,1757832639606,-480.0,0.00021917,2]
[385399631,1757832639616,-480.0,0.00021917,2]
[385399632,1757832639625,-510.73,0.00021917,2]
[385399633,1757832639634,-483.68109496,0.00021917,2]
[385399634,1757832639643,-487.95323206,0.00021917,2]
[385399635,1757832639652,-1847.58,0.00021917,2]
[385399636,1757832639662,-480.0,0.00021917,2]
[385399637,1757832639671,-480.0,0.00021917,2]
[385399638,1757832639680,-826.28,0.00021917,2]
[385399639,1757832639689,-1341.02,0.00021917,2]
[385399640,1757832639698,-1257.35,0.00021917,2]
[385399641,1757832639708,-187.48150036,0.00021917,2]
[385399642,1757832639717,-480.0,0.00021917,2]
[385399643,1757832639727,-172.15728703,0.00021917,2]
[385399644,1757832639736,-480.0,0.00021917,2]
[385399645,1757832639746,-500.0,0.00021917,2]
[385399646,1757832639755,-480.0,0.00021917,2]
[385399647,1757832639764,-531.14,0.00021917,2]
[385399648,1757832639773,-5938.28,0.00021917,2]
[385399649,1757832639783,-1685.18,0.00021917,2]
[385399650,1757832639792,-609.99,0.00021917,2]
[385399651,1757832639802,-3562.26,0.00021917,2]
[385399652,1757832639811,-480.0,0.00021917,2]
[385399653,1757832639821,-480.0,0.00021917,2]
[385399654,1757832639832,-480.0,0.00021917,2]
[385399655,1757832639842,-291.83342601,0.00021917,2]
[385399656,1757832639852,-480.0,0.00021917,2]
[385399657,1757832639861,-480.0,0.00021917,2]
[385399658,1757832639871,-3714.32,0.00021917,2]
[385399659,1757832639880,-647.81,0.00021917,2]
[385399660,1757832639890,-4744.37,0.00021917,2]
[385399661,1757832639899,-480.0,0.00021917,2]
[385399663,1757832639909,-480.0,0.00021917,2]
[385399664,1757832639918,-480.0,0.00021917,2]
[385399665,1757832639927,-1745.35,0.00021917,2]
[385399666,1757832639937,-439.74064404,0.00021917,2]
[385399667,1757832639947,-480.0,0.00021917,2]